fUSD/lending_fUSD_20240503
["ID","MTS","AMOUNT","RATE_DAILY","PERIOD"]
[325332603,1714738246058,-425.736886,0.000355,7]
[325332604,1714738246069,-285.12,0.000355,7]
[325332605,1714738246080,-425.736886,0.000355,7]
[325332606,1714738246091,-385.474595,0.000355,7]
[325332607,1714738246100,-285.12,0.000355,7]
[325332608,1714738246110,-385.474595,0.000355,7]
[325332609,1714738246120,-151.0,0.000355,7]
[325332610,1714738246131,-282.360964,0.000355,7]
[325332611,1714738246141,-282.360964,0.000355,7]
[325332612,1714738246152,-263.55911,0.000355,7]
[325332613,1714738246161,-263.55911,0.000355,7]
[325332614,1714738246172,-151.0,0.000355,7]
[325332615,1714738246182,-151.0,0.000355,7]
[325332616,1714738246191,-151.0,0.000355,7]
[325332617,1714738246200,-151.0,0.000355,7]
[325332618,1714738246210,-738.837124,0.000355,7]
[325332619,1714738246219,-738.837124,0.000355,7]
[325332620,1714738246228,-1402.978893,0.000355,7]
[325332621,1714738246237,-1402.978893,0.000355,7]
[325332622,1714738246246,-1319.648238,0.000355,7]
[325332623,1714738246255,-1319.648238,0.000355,7]
[325332624,1714738246265,-187.267603,0.000355,7]
[325332626,1714738246274,-187.267603,0.000355,7]
[325332628,1714738246283,-151.0,0.000355,7]
[325332629,1714738246292,-151.0,0.000355,7]
[325332630,1714738246302,-151.0,0.000355,7]
[325332631,1714738246311,-151.0,0.000355,7]
[325332632,1714738246321,-589.840564,0.000355,7]
[325332633,1714738246331,-589.840564,0.000355,7]
[325332634,1714738246340,-151.0,0.000355,7]
[325332635,1714738246351,-151.0,0.000355,7]
[325332636,1714738246362,-151.0,0.000355,7]
[325332637,1714738246372,-363.237107,0.000355,7]
[325332638,1714738246381,-151.0,0.000355,7]
[325332639,1714738246390,-363.237107,0.000355,7]
[325332640,1714738246399,-151.0,0.000355,7]
[325332641,1714738246409,-151.0,0.000355,7]
[325332642,1714738246418,-174.662248,0.000355,7]
[325332643,1714738246427,-1223.58648,0.000355,7]
[325332644,1714738246437,-1223.58648,0.000355,7]
[325332645,1714738246448,-151.0,0.000355,7]
[325332646,1714738246457,-332.454829,0.000355,7]
[325332647,1714738246466,-332.454829,0.000355,7]
[325332648,1714738246476,-3910.732509,0.000355,7]
[325332649,1714738246485,-3910.732509,0.000355,7]
[325332650,1714738246494,-151.0,0.000355,7]
[325332651,1714738246503,-151.0,0.000355,7]
[325332652,1714738246513,-617.676432,0.000355,7]
[325332653,1714738246522,-151.0,0.000355,7]
[325332654,1714738246531,-617.676432,0.000355,7]
[325332655,1714738246540,-481.462114,0.000355,7]
[325332656,1714738246551,-481.462114,0.000355,7]
[325332657,1714738246562,-185.203204,0.000355,7]
[325332658,1714738246571,-259.305485,0.000355,7]
[325332659,1714738246580,-185.203204,0.000355,7]
[325332660,1714738246590,-151.0,0.000355,7]
[325332661,1714738246599,-259.305485,0.000355,7]
[325332662,1714738246608,-151.0,0.000355,7]
[325332663,1714738246617,-932.076836,0.000355,7]
[325332664,1714738246627,-932.076836,0.000355,7]
[325332665,1714738246636,-304.053063,0.000355,7]
[325332666,1714738246645,-304.053063,0.000355,7]
[325332667,1714738246655,-151.0,0.000355,7]
[325332668,1714738246664,-151.0,0.000355,7]
[325332669,1714738246673,-151.0,0.000355,7]
[325332670,1714738246682,-151.0,0.000355,7]
[325332671,1714738246691,-151.0,0.000355,7]
[325332672,1714738246701,-151.0,0.000355,7]
[325332673,1714738246710,-151.0,0.000355,7]
[325332674,1714738246719,-151.0,0.000355,7]
[325332675,1714738246728,-151.551248,0.000355,7]
[325332676,1714738246737,-151.0,0.000355,7]
[325332677,1714738246746,-1207.49222,0.000355,7]
[325332678,1714738246755,-1207.49222,0.000355,7]
[325332679,1714738246764,-151.0,0.000355,7]
[325332680,1714738246773,-151.0,0.000355,7]
[325332681,1714738246783,-151.0,0.000355,7]
[325332682,1714738246792,-180.698331,0.000355,7]
[325332683,1714738246801,-151.0,0.000355,7]
[325332684,1714738246810,-151.0,0.000355,7]
[325332685,1714738246822,-392.191851,0.000355,7]
[325332686,1714738246832,-151.0,0.000355,7]
[325332687,1714738246843,-392.191851,0.000355,7]
[325332688,1714738246853,-151.0,0.000355,7]
[325332689,1714738246862,-167.388103,0.000355,7]
[325332690,1714738246873,-151.0,0.000355,7]
[325332691,1714738246882,-2362.3394,0.000355,7]
[325332692,1714738246892,-151.0,0.000355,7]
[325332693,1714738246907,-2362.3394,0.000355,7]
[325332694,1714738246917,-151.0,0.000355,7]
[325332695,1714738246926,-309.106547,0.000355,7]
[325332696,1714738246935,-309.106547,0.000355,7]
[325332697,1714738246947,-151.0,0.000355,7]
[325332698,1714738246956,-151.0,0.000355,7]
[325332699,1714738246966,-189.952432,0.000355,7]
[325332700,1714738246979,-152.396064,0.000355,7]
[325332701,1714738246990,-152.396064,0.000355,7]
[325332702,1714738247000,-337.198247,0.000355,7]
[325332703,1714738247011,-337.198247,0.000355,7]
[325332704,1714738247020,-242.748126,0.000355,7]
[325332705,1714738247030,-242.748126,0.000355,7]
[325332706,1714738247040,-151.0,0.000355,7]
[325332707,1714738247049,-150.28,0.00035616,2]
[325332708,1714738247059,-604.0,0.00035881,7]
[325332709,1714738247070,-165.34,0.000359,7]
[325332710,1714738247079,-682.17,0.000359,2]
[325332711,1714738247168,-160.61240696,0.000359,2]
[325332712,1714738247179,-3000.0,0.00036,11]
[325332713,1714738247188,-900.0,0.00036,3]
[325332714,1714738247197,-500.0,0.00036,11]
[325332715,1714738247207,-1342.0,0.00036493,5]
[325332716,1714738247216,-176.20691427,0.00036991,10]
[325332717,1714738247225,-3000.0,0.00037,12]
[325332718,1714738247234,-182384.96828411,0.00037,10]
[325332719,1714738247932,-0.01268982,0.00037,10]
[325332720,1714738247944,-7713.24288654,0.00037,10]
[325332721,1714738247956,-4038.47276831,0.00037,10]
[325332722,1714738247968,-290.7047145,0.00037,10]
[325332723,1714738247980,-4736.957,0.00037,10]
[325332724,1714738247993,-602.00041313,0.00037,10]
[325332725,1714738248020,-2532.9872,0.00037,10]
[325332726,1714738248031,-253.44497898,0.00037,10]
[325332727,1714738248061,-5641.0103015,0.00037,10]
[325332728,1714738248072,-17793.43869762,0.00037,10]
[325332729,1714738248169,-4364.5127787,0.00037,10]
[325332730,1714738249234,-1983.83490214,0.0003098,7]
[325332731,1714738249246,-4148.44802986,0.0003098,7]
[325332732,1714738249256,-6132.282932,0.000355,7]
[325332733,1714738249265,-52145.10332453,0.00037,10]
[325332734,1714738249276,-903.814,0.00037,10]
[325332735,1714738249287,-1161.985,0.00037,10]
[325332736,1714738249309,-5269.4448379,0.00037,10]
[325332737,1714738249329,-1961.70242835,0.00037,10]
[325332738,1714738249340,-771.19254716,0.00037,10]
[325332739,1714738249355,-463835.53421348,0.00037,10]
[325332740,1714738249367,-11507.4720811,0.00037,10]
[325332741,1714738252337,-5090.41529233,0.0003098,7]
[325332742,1714738252350,-1041.86763967,0.0003098,7]
[325332743,1714738252359,-5527.59265033,0.00031202,2]
[325332744,1714738252372,-508.87459288,0.00031202,2]
[325332745,1714738252381,-1764.964287,0.00037,10]
[325332746,1714738252431,-441.75196517,0.000355,7]
[325332747,1714738252535,-5690.53096683,0.000355,7]
[325332748,1714738252546,-3308.66806079,0.00037,10]
[325332755,1714739432615,-954.20107769,0.00010798,2]
[325332756,1714739432624,-151.46769876,0.00016897,2]
[325332757,1714739432634,-155.0,0.00016997,2]
[325332758,1714739432643,-155.0,0.00016997,2]
[325332759,1714739432652,-155.0,0.00016997,2]
[325332760,1714739432662,-450.0,0.00018,3]
[325332761,1714739432671,-500.0,0.0002,3]
[325332762,1714739432681,-155.0,0.000209,2]
[325332763,1714739432690,-550.0,0.00022,3]
[325332764,1714739432701,-499.99,0.00022,2]
[325332765,1714739432711,-1184.70704533,0.000237,2]
[325332766,1714739432723,-1221.29295467,0.000237,2]
[325332767,1714739432733,-166.16,0.00023836,2]
[325332768,1714739432742,-600.0,0.00024,3]
[325332769,1714739432751,-5000.0,0.00025,2]
[325332770,1714739432760,-3870.84215407,0.00025108,2]
[325332771,1714739432776,-16696.65100386,0.00025108,2]
[325332772,1714739432785,-650.0,0.00026,3]
[325332773,1714739432795,-165.29,0.00026268,2]
[325332774,1714739432804,-250.0,0.00026268,2]
[325332775,1714739432813,-8000.0,0.00026577,7]
[325332776,1714739432822,-300.0,0.00027397,2]
[325332777,1714739432831,-5334.25050157,0.00027696,2]
[325332778,1714739432841,-3901.74185922,0.00027951,2]
[325332779,1714739432850,-898.92095251,0.00027976,2]
[325332780,1714739432859,-155.0,0.00027976,2]
[325332781,1714739432869,-12054.64145863,0.00027976,2]
[325332782,1714739432878,-155.16361916,0.00027976,2]
[325332783,1714739432888,-402.34162791,0.00027976,2]
[325332784,1714739432897,-262.42010681,0.00027976,2]
[325332785,1714739432906,-399.42482649,0.00027976,2]
[325332786,1714739432916,-487.4952018,0.00027976,2]
[325332787,1714739432926,-573.49002058,0.00027976,7]
[325332788,1714739432936,-448.42756059,0.00027976,2]
[325332789,1714739432955,-579.494,0.00027976,2]
[325332790,1714739432970,-322.53660849,0.00027976,2]
[325332791,1714739432988,-239.76079873,0.00027976,2]
[325332792,1714739432997,-409.12386927,0.00027976,2]
[325332793,1714739433007,-164.21330149,0.00027976,2]
[325332794,1714739433016,-155.16124094,0.00027976,2]
[325332795,1714739433026,-167.19293106,0.00027976,2]
[325332796,1714739433036,-200.28852348,0.00027976,2]
[325332797,1714739433046,-194.23616957,0.00027976,2]
[325332798,1714739433056,-155.0,0.00027976,2]
[325332799,1714739433066,-220.66660495,0.00027976,2]
[325332800,1714739433076,-1049.20227677,0.00027977,2]
[325332801,1714739433086,-2485.27505268,0.00027977,2]
[325332802,1714739433095,-1669.29565087,0.00027977,2]
[325332803,1714739433105,-2997.64801777,0.00027977,2]
[325332804,1714739433343,-829.99220116,0.00027977,2]
[325332805,1714739433418,-1884.75910552,0.00027977,2]
[325332806,1714739433428,-23900.0,0.00028783,2]
[325332807,1714739433438,-1000.0,0.00028842,2]
[325332808,1714739433448,-150.28,0.00028869,2]
[325332809,1714739433461,-406.0,0.00029406,30]
[325332810,1714739433470,-151.51173512,0.00029406,2]
[325332811,1714739433480,-250.0,0.00029662,2]
[325332812,1714739433489,-256.25,0.0002978,120]
[325332813,1714739433499,-1798.3904,0.00029972,2]
[325332814,1714739433509,-10000.0,0.0003,15]
[325332815,1714739433518,-155.0,0.0003,4]
[325332816,1714739433527,-1893.06824777,0.0003,2]
[325332817,1714739433536,-152.44,0.00030046,2]
[325332818,1714739433545,-200.109683,0.0003039,2]
[325332819,1714739433554,-400.0,0.00030438,120]
[325332820,1714739433563,-200.109683,0.0003077,2]
[325332821,1714739433573,-153.70167688,0.00030821,7]
[325332822,1714739433582,-492.26920761,0.00031,5]
[325332823,1714739433591,-200.109683,0.00031149,2]
[325332824,1714739433601,-200.109683,0.00031529,2]
[325332825,1714739433610,-155.87072566,0.00031642,7]
[325332826,1714739433619,-200.109683,0.00031909,2]
[325332827,1714739433629,-285.66033213,0.00032,4]
[325332828,1714739433638,-201.0,0.00032,2]
[325332829,1714739433647,-1000.0,0.00032447,2]
[325332830,1714739433657,-180.0,0.0003272,2]
[325332831,1714739433666,-150.0,0.00033,2]
[325332832,1714739433676,-256.25,0.00033503,120]
[325332833,1714739433686,-400.0,0.00034242,120]
[325332834,1714739433695,-400.0,0.00034848,2]
[325332835,1714739433708,-288.0,0.00034848,2]
[325332836,1714739433717,-4825.88916702,0.000349,2]
[325332837,1714739433726,-159.88046271,0.00034906,7]
[325332838,1714739433736,-281.72825873,0.00035,15]
[325332839,1714739433746,-500.0,0.000353,2]
[325332840,1714739433755,-151.46769875,0.000353,2]
[325332841,1714739433764,-1000.0,0.000353,2]
[325332842,1714739433774,-756.3374,0.000353,2]
[325332843,1714739433783,-40085.7846,0.000354,2]
[325332844,1714739433792,-100000.0,0.000354,2]
[325332845,1714739433801,-1065.3038,0.000354,2]
[325332846,1714739433811,-4000.10535841,0.000354,8]
[325332847,1714739433820,-7500.0,0.000354,2]
[325332848,1714739433830,-181484.99929126,0.000354,120]
[325332849,1714739433870,-267.95,0.000354,120]
[325332850,1714739433882,-885.01097913,0.000354,120]
[325332851,1714739433893,-633.98886173,0.000354,120]
[325332890,1714739438215,-37171.83696788,0.000354,120]
[325332893,1714739438228,-377.60637872,0.000354,2]
[325332896,1714739438238,-1251.0,0.000355,5]
[325332899,1714739438247,-46202.34153492,0.000355,2]
[325332924,1714739438385,-4077.14185465,0.000355,2]
[325332939,1714739438503,-1748115.11522112,0.000355,2]
[325332941,1714739438512,-151.87422436,0.000355,2]
[325332943,1714739438522,-569.30171561,0.000356,30]
[325332945,1714739438532,-3497.72576639,0.00035638,2]
[325332947,1714739438542,-300.0,0.000357,13]
[325332948,1714739438551,-1560.32144644,0.00035785,2]
[325332949,1714739438561,-600.0,0.000358,13]
[325332950,1714739438570,-3000.0,0.000359,2]
[325332951,1714739438580,-900.0,0.000359,13]
[325332952,1714739438589,-377.60637864,0.00036007,2]
[325332953,1714739438598,-1000.0,0.00036053,2]
[325332954,1714739438608,-4000.1053584,0.00036173,9]
[325332955,1714739438617,-1051.81601819,0.0003626,5]
[325332956,1714739438628,-377.60637864,0.00036614,2]
[325332957,1714739438637,-4000.1053584,0.00036945,10]
[325332958,1714739438647,-71374.84183018,0.00037,10]
[325332959,1714739438656,-1000.0,0.00037,11]
[325332960,1714739438666,-29594.67,0.00037,5]
[325332961,1714739438676,-155.0,0.00037,2]
[325332962,1714739438686,-165.35,0.00037,7]
[325332963,1714739438696,-4123.24250626,0.00037,4]
[325332964,1714739438709,-492.8521724,0.00037,120]
[325332965,1714739438720,-3270.0,0.00037,60]
[325332966,1714739438731,-2000.0,0.00037,2]
[325332967,1714739438741,-200.0,0.00037,2]
[325332968,1714739438751,-500.0,0.00037,2]
[325332969,1714739438760,-500.0,0.00037,2]
[325332970,1714739438770,-500.0,0.00037,2]
[325332971,1714739438780,-500.0,0.00037,2]
[325332972,1714739438790,-458.84387794,0.00037,2]
[325332973,1714739438802,-41.15612206,0.00037,2]
[325332974,1714739438812,-155.0,0.00037,4]
[325332975,1714739438822,-500.0,0.00037136,10]
[325332976,1714739438831,-377.60637864,0.00037221,2]
[325332977,1714739438840,-256.25,0.00037225,120]
[325332978,1714739438850,-2000.0,0.0003737,2]
[325332979,1714739438859,-200.0,0.0003737,2]
[325332980,1714739438869,-6971.35793369,0.00037409,2]
[325332981,1714739438878,-16962.58172212,0.000375,3]
[325332982,1714739438888,-155.0,0.000375,3]
[325332983,1714739438897,-152.0,0.00037596,3]
[325332984,1714739438906,-4000.1053584,0.00037718,11]
[325332985,1714739438916,-377.60637864,0.00037829,2]
[325332986,1714739438925,-288.0,0.00037848,2]
[325332987,1714739438935,-500.0,0.00037958,10]
[325332988,1714739438944,-3000.0,0.00038,13]
[325332989,1714739438954,-400.0,0.00038047,120]
[325332990,1714739438966,-522.59,0.00038082,2]
[325332991,1714739438975,-329.17,0.00038082,2]
[325332992,1714739438984,-150.0,0.00038082,2]
[325332993,1714739438993,-522.59,0.00038082,2]
[325332994,1714739439003,-500.0,0.00038232,10]
[325332995,1714739439012,-2379.33,0.00038328,45]
[325332996,1714739439021,-2233.72,0.00038328,45]
[325332997,1714739439030,-377.60637864,0.00038436,2]
[325332998,1714739439040,-4000.1053584,0.00038491,12]
[325332999,1714739439050,-331147.98884769,0.00038517,120]
[325333000,1714739439059,-375.6,0.000386,7]
[325333001,1714739439068,-2379.33,0.00038602,47]
[325333002,1714739439077,-2233.72,0.00038602,47]
[325333003,1714739439086,-300.0,0.00038727,120]
[325333004,1714739439096,-500.0,0.0003878,10]
[325333005,1714739439105,-500.0,0.0003878,10]
[325333006,1714739439114,-1200.0,0.000388,14]
[325333007,1714739439123,-2379.33,0.00038876,49]
[325333008,1714739439132,-2233.72,0.00038876,49]
[325333009,1714739439141,-4088.79484012,0.000389,15]
[325333010,1714739439150,-881.87566879,0.000389,30]
[325333011,1714739439159,-1500.0,0.000389,14]
[325333012,1714739439169,-33332.0,0.0003899,4]
[325333013,1714739439179,-3000.0,0.00039,14]
[325333014,1714739439189,-172.57078449,0.00039005,3]
[325333015,1714739439198,-417.48727554,0.0003901,2]
[325333016,1714739439210,-377.60637864,0.00039043,2]
[325333017,1714739439220,-500.0,0.00039054,10]
[325333018,1714739439235,-1000.0,0.00039084,20]
[325333019,1714739439244,-500.0,0.00039084,20]
[325333020,1714739439254,-1000.0,0.00039085,20]
[325333021,1714739439263,-1000.0,0.00039085,20]
[325333022,1714739439275,-500.0,0.00039085,20]
[325333023,1714739439285,-500.0,0.00039085,20]
[325333024,1714739439295,-2204.55984,0.00039121,90]
[325333025,1714739439304,-2379.33,0.0003915,51]
[325333026,1714739439314,-2233.72,0.0003915,51]
[325333027,1714739439324,-419.58,0.0003926,2]
[325333028,1714739439333,-522.59,0.0003926,2]
[325333029,1714739439343,-332.1,0.0003926,2]
[325333030,1714739439352,-300.0,0.0003926,2]
[325333031,1714739439362,-437.61,0.0003926,2]
[325333032,1714739439371,-419.58,0.0003926,2]
[325333033,1714739439380,-522.59,0.0003926,2]
[325333034,1714739439391,-350.82,0.0003926,2]
[325333035,1714739439400,-419.58,0.0003926,2]
[325333036,1714739439410,-4000.1053584,0.00039264,12]
[325333037,1714739439419,-375.6,0.000393,7]
[325333038,1714739439429,-500.0,0.00039328,10]
[325333039,1714739439438,-500.0,0.00039328,10]
[325333040,1714739439447,-500.0,0.00039328,10]
[325333041,1714739439458,-13955.5783868,0.00039397,2]
[325333042,1714739439467,-2799.9769974,0.00039397,2]
[325333043,1714739439476,-9700.6427981,0.00039397,2]
[325333044,1714739439486,-499.8542375,0.00039397,2]
[325333045,1714739439496,-79766.6727273,0.00039397,2]
[325333046,1714739439505,-276.90455109,0.00039399,2]
[325333047,1714739439515,-2091.12410388,0.00039399,2]
[325333048,1714739439524,-97672.70415311,0.00039399,7]
[325333049,1714739439533,-818897.60542021,0.000394,2]
[325333050,1714739439545,-423396.89926276,0.000394,2]
[325333051,1714739440358,-500.6643648,0.00035852,2]
[325333052,1714739440459,-848.24246646,0.00035852,2]
[325333053,1714739440470,-611.06641498,0.00035858,2]
[325333054,1714739440480,-2356.27111856,0.000394,2]
[325333055,1714739440492,-72959.14744626,0.000394,2]
[325333056,1714739440508,-8212.15068341,0.000394,2]
[325333057,1714739440520,-532.79332808,0.000394,2]
[325333058,1714739440536,-7282.66282219,0.000394,2]
[325333059,1714739440548,-4970.78594438,0.000394,2]
[325333060,1714739441707,-291.31,0.0003539,10]
[325333061,1714739441720,-812.54388373,0.000394,2]
[325333083,1714739443592,-8397.66880694,0.000394,2]
[325333084,1714739443620,-357.67788139,0.000394,2]
[325333085,1714739443632,-39912.25572739,0.000394,2]
[325333086,1714739443643,-319.06,0.000394,2]
[325333087,1714739443654,-9792.27436798,0.000394,2]
[325333088,1714739443665,-3191.5174042,0.000394,2]
[325333089,1714739443677,-3397.76989014,0.000394,2]
[325333090,1714739443688,-1117.63928077,0.000394,2]
[325333092,1714739443994,-3507.23,0.000394,2]
[325333093,1714739444023,-46115.38469206,0.000394,2]
[325333094,1714739444043,-2595.58041615,0.000394,2]
[325333100,1714739446512,-310.3780729,0.00026577,2]
[325333101,1714739446522,-1080.0,0.00038133,5]
[325333102,1714739446532,-150225.55978583,0.000394,2]
[325333103,1714739446544,-1647.09143245,0.000394,2]
[325333104,1714739446556,-1096.73929598,0.000394,2]
[325333105,1714739446584,-34464.63719023,0.000394,2]
[325333106,1714739446607,-1332.4921741,0.000394,2]
[325333107,1714739446651,-3024.13162565,0.000394,2]
[325333108,1714739446672,-5456.68684212,0.000394,2]
[325333109,1714739446694,-649.3866149,0.000394,2]
[325333110,1714739446706,-4030.75897368,0.000394,2]
[325333111,1714739446798,-1123.52599367,0.000394,2]
[325333112,1714739446810,-3648.58680476,0.000394,2]
[325333113,1714739446821,-2934.99996,0.000394,2]
[325333211,1714740631713,-150.0,0.00010993,2]
[325333213,1714740631725,-155.0,0.00016997,2]
[325333215,1714740631734,-450.0,0.00018,3]
[325333217,1714740631743,-2497.16,0.00018,2]
[325333219,1714740631753,-499.99,0.00019726,2]
[325333221,1714740631762,-150.0,0.00019973,2]
[325333223,1714740631771,-500.0,0.0002,3]
[325333225,1714740631781,-155.0,0.000209,2]
[325333227,1714740631791,-150.05,0.00021644,2]
[325333229,1714740631800,-151.21,0.00021644,2]
[325333231,1714740631810,-550.0,0.00022,3]
[325333233,1714740631820,-600.0,0.00024,3]
[325333235,1714740631829,-474.0,0.000244,2]
[325333237,1714740631839,-1632.04686953,0.00025,2]
[325333239,1714740631852,-3367.95313047,0.00025,2]
[325333241,1714740631861,-650.0,0.00026,3]
[325333243,1714740631871,-600.0,0.00026268,2]
[325333245,1714740631880,-160.0,0.00026268,120]
[325333247,1714740631890,-151.21,0.00027714,2]
[325333249,1714740631900,-182.10715095,0.00027976,2]
[325333251,1714740631909,-157.11950137,0.00027976,2]
[325333253,1714740631919,-342.77116761,0.00027976,2]
[325333255,1714740631928,-412.80170973,0.00027976,2]
[325333257,1714740631943,-1643.54552428,0.00027976,2]
[325333259,1714740631952,-332.49181559,0.00027976,2]
[325333261,1714740631964,-937.38051141,0.00027976,2]
[325333263,1714740631973,-210.92049527,0.00027976,2]
[325333265,1714740631983,-152.44,0.00028123,2]
[325333266,1714740631992,-156.04,0.00028423,2]
[325333267,1714740632002,-164.06,0.00028449,120]
[325333268,1714740632011,-150.28,0.00028945,2]
[325333269,1714740632022,-250.0,0.00029155,2]
[325333270,1714740632031,-409.12399132,0.00029195,2]
[325333271,1714740632043,-2241.45861591,0.00029195,2]
[325333272,1714740632054,-338.89704092,0.00029195,2]
[325333273,1714740632127,-350.0,0.00029195,2]
[325333274,1714740632139,-615.25441392,0.00029195,2]
[325333276,1714740632151,-39.64593793,0.00029195,2]
[325333278,1714740632160,-150.05,0.00029333,2]
[325333280,1714740632169,-876.59854396,0.00029423,2]
[325333282,1714740632178,-425.07724057,0.00029435,60]
[325333284,1714740632193,-2824.68843833,0.00029435,60]
[325333288,1714740632221,-1988.96402983,0.00029435,60]
[325333290,1714740632232,-609.86344662,0.00029435,60]
[325333292,1714740632247,-3014.10005083,0.00029435,60]
[325333293,1714740632259,-700.0,0.00029435,60]
[325333294,1714740632271,-40437.30679382,0.00029435,60]
[325333295,1714740632280,-400.0,0.00029518,2]
[325333296,1714740632290,-353.47386846,0.0002955,2]
[325333297,1714740632299,-600.0,0.00029551,2]
[325333298,1714740632309,-160.0,0.00029551,120]
[325333299,1714740632318,-250.0,0.00029558,2]
[325333300,1714740632328,-609.45,0.00029722,2]
[325333301,1714740632337,-155.0,0.0003,4]
[325333302,1714740632347,-492.26920761,0.00031,5]
[325333303,1714740632357,-500.0,0.00032,120]
[325333304,1714740632366,-180.0,0.00032348,2]
[325333305,1714740632376,-500.0,0.000325,120]
[325333306,1714740632385,-600.0,0.00032835,2]
[325333307,1714740632394,-160.0,0.00032835,120]
[325333308,1714740632404,-500.0,0.00033,120]
[325333309,1714740632413,-164.06,0.0003319,120]
[325333310,1714740632423,-400.0,0.00033208,2]
[325333311,1714740632433,-500.0,0.000335,120]
[325333312,1714740632445,-151.21,0.00033785,2]
[325333313,1714740632455,-500.0,0.00034,120]
[325333314,1714740632464,-788.43,0.00034465,2]
[325333315,1714740632474,-500.0,0.000345,120]
[325333316,1714740632483,-150.0,0.00034548,10]
[325333317,1714740632492,-155.0,0.00035,15]
[325333318,1714740632502,-500.0,0.00035,120]
[325333319,1714740632512,-160.32,0.0003529,3]
[325333320,1714740632521,-2204.55984003,0.00035299,60]
[325333321,1714740632531,-3887.5709,0.000353,2]
[325333322,1714740632540,-46433.0755,0.000353,2]
[325333323,1714740632550,-481.0,0.0003539,3]
[325333324,1714740632560,-4297.6801,0.000354,2]
[325333325,1714740632571,-151.39999165,0.000354,2]
[325333326,1714740632581,-151.87422436,0.000354,2]
[325333327,1714740632591,-352.43262012,0.000354,2]
[325333328,1714740632600,-7500.0,0.000354,2]
[325333329,1714740632610,-178.16,0.0003549,2]
[325333330,1714740632620,-178.16,0.0003549,2]
[325333331,1714740632630,-178.16,0.0003549,2]
[325333332,1714740632640,-1384.32,0.00035499,2]
[325333333,1714740632652,-1384.32,0.00035499,2]
[325333334,1714740632662,-1384.32,0.00035499,2]
[325333335,1714740632672,-1384.32,0.00035499,2]
[325333336,1714740632682,-1384.32,0.00035499,2]
[325333337,1714740632696,-1384.32,0.00035499,2]
[325333338,1714740632705,-1124.74953847,0.00035499,2]
[325333339,1714740632717,-259.57046153,0.00035499,2]
[325333340,1714740632726,-1384.32,0.00035499,2]
[325333341,1714740632737,-999.28732916,0.00035499,10]
[325333342,1714740632747,-342254.79817892,0.000355,2]
[325333343,1714740632759,-15156.51075905,0.000355,2]
[325333344,1714740632771,-12109.07982,0.000355,2]
[325333345,1714740632783,-3618.80440553,0.000355,2]
[325333346,1714740632794,-14395.03021466,0.000355,2]
[325333347,1714740632808,-1432.68764726,0.000355,2]
[325333348,1714740632823,-663.82444517,0.000355,2]
[325333349,1714740632835,-555.59877824,0.000355,2]
[325333350,1714740632846,-91258.65158777,0.000355,2]
[325333351,1714740632857,-5102.55447251,0.000355,2]
[325333352,1714740632881,-371.88346704,0.000355,2]
[325333353,1714740632892,-1097.5348274,0.000355,2]
[325333354,1714740632904,-3798.72853297,0.000355,2]
[325333355,1714740632916,-308.50333014,0.000355,2]
[325333356,1714740632927,-474.53234432,0.000355,2]
[325333357,1714740632942,-12168.69238002,0.000355,2]